bitfinex/quotes_BTCUSD_20251009
["timestamp","ask_amount","ask_price","bid_price","bid_amount"]
[1759978923557,0.006,121850.0,121840.0,1.25804094]
[1759978923745,0.006,121850.0,121840.0,1.49128094]
[1759978924016,0.006,121850.0,121840.0,1.59459165]
[1759978925555,0.006,121850.0,121840.0,2.35211063]
[1759978925768,0.006,121850.0,121840.0,1.95472093]
[1759978925976,0.006,121850.0,121840.0,2.18796093]
[1759978926198,0.006,121850.0,121840.0,2.35211063]
[1759978926660,0.006,121850.0,121840.0,1.78889325]
[1759978926883,0.006,121850.0,121840.0,2.24387061]
[1759978927119,0.0004,121860.0,121850.0,0.55928812]
[1759978927343,0.0004,121880.0,121870.0,0.65926117]
[1759978927572,0.0004,121900.0,121890.0,0.16408236]
[1759978927785,0.0004,121900.0,121890.0,1.3855018]
[1759978928027,0.0004,121900.0,121890.0,0.35683442]
[1759978928246,0.0004,121900.0,121890.0,1.686966]
[1759978928684,0.0004,121900.0,121890.0,1.4834779]
[1759978928905,0.0004,121900.0,121890.0,1.6140239]
[1759978929337,0.0044,121900.0,121890.0,1.71699869]
[1759978929553,0.0044,121900.0,121890.0,1.82335869]
[1759978929765,0.0044,121900.0,121890.0,2.07906388]
[1759978929991,0.0054,121900.0,121890.0,2.07906388]
[1759978930180,0.00130913,121900.0,121890.0,1.41854388]
[1759978930442,0.00130913,121900.0,121890.0,2.07906388]
[1759978930650,0.00030913,121900.0,121890.0,2.08106388]
[1759978930871,0.00030913,121900.0,121890.0,2.05606389]
[1759978931074,0.00030913,121900.0,121890.0,1.42054388]
[1759978931275,0.00030913,121900.0,121890.0,1.84734388]
[1759978931492,0.00030913,121900.0,121890.0,2.64420126]
[1759978931962,0.00030913,121900.0,121890.0,1.53259828]
[1759978932174,0.00030913,121900.0,121890.0,2.25083828]
[1759978932393,0.00030913,121900.0,121890.0,2.48467828]
[1759978932604,0.00030913,121900.0,121890.0,2.25083828]
[1759978933096,0.0028666,121900.0,121890.0,2.48463828]
[1759978933851,0.0028666,121900.0,121890.0,1.48259828]
[1759978934048,0.0028666,121900.0,121890.0,1.48759828]
[1759978934250,0.0028666,121900.0,121890.0,2.5921986]
[1759978936057,0.00270292,121900.0,121890.0,2.5921986]
[1759978936255,0.00270292,121900.0,121890.0,2.5901986]
[1759978936413,0.00270292,121900.0,121890.0,2.5851986]
[1759978936625,0.00270292,121900.0,121890.0,2.5861586]
[1759978936838,0.00270292,121900.0,121890.0,1.5863186]
[1759978937044,0.00270292,121900.0,121890.0,2.5881586]
[1759978937844,0.00270292,121900.0,121890.0,1.5863186]
[1759978938284,0.00270292,121900.0,121890.0,1.85456258]
[1759978938482,0.00270292,121900.0,121890.0,2.11847448]
[1759978938686,0.00270292,121900.0,121890.0,2.01575416]
[1759978939046,0.00270292,121900.0,121890.0,1.98560226]
[1759978939251,0.00270292,121900.0,121890.0,2.01575416]
[1759978940571,0.00270292,121900.0,121890.0,2.01567416]
[1759978941742,0.00270292,121900.0,121890.0,2.37021153]
[1759978941954,0.00270292,121900.0,121890.0,2.70385152]
[1759978942171,0.00270292,121900.0,121890.0,2.473495]
[1759978942381,0.00270292,121900.0,121890.0,2.707215]
[1759978942595,0.00270292,121900.0,121890.0,2.757215]
[1759978943673,0.00270292,121900.0,121890.0,2.754215]
[1759978944094,0.0004,121910.0,121890.0,2.764215]
[1759978944319,0.0004,121920.0,121910.0,0.65920733]
[1759978944542,0.0004,121920.0,121910.0,2.11978415]
[1759978944747,0.00142261,121920.0,121910.0,2.20397415]
[1759978944958,0.00142261,121920.0,121910.0,1.97349712]
[1759978945185,0.00142261,121920.0,121910.0,3.07774453]
[1759978945396,0.00142261,121920.0,121910.0,1.97349712]
[1759978945604,0.00142261,121920.0,121910.0,2.97525712]
[1759978945837,0.00142261,121920.0,121910.0,2.44384466]
[1759978946065,0.00142261,121920.0,121910.0,2.67764466]
[1759978947354,0.00142261,121920.0,121910.0,2.67964466]
[1759978948033,0.00142261,121920.0,121910.0,2.44584466]
[1759978948473,0.00142261,121920.0,121910.0,2.67956466]
[1759978948672,0.00142261,121920.0,121910.0,2.44584466]
[1759978948873,0.00142261,121920.0,121910.0,2.67956466]
[1759978949080,0.00142261,121920.0,121910.0,2.44584466]
[1759978949554,0.00142261,121920.0,121910.0,2.67956466]
[1759978949956,0.00142261,121920.0,121910.0,2.44996631]
[1759978950626,0.00142261,121920.0,121910.0,0.7906275]
[1759978950841,0.00142261,121920.0,121910.0,1.95009146]
[1759978951261,0.00142261,121920.0,121910.0,0.69062751]
[1759978951531,0.00142261,121920.0,121910.0,1.44607601]
[1759978951736,0.00142261,121920.0,121910.0,0.78579601]
[1759978951966,0.00142261,121920.0,121910.0,0.52657206]
[1759978952256,0.00142261,121920.0,121910.0,1.18701206]
[1759978952659,0.00142261,121920.0,121910.0,0.84601206]
[1759978952873,0.00142261,121920.0,121910.0,1.18601206]
[1759978953081,0.00342261,121920.0,121910.0,1.21616396]
[1759978953352,0.00342261,121920.0,121910.0,0.87516396]
[1759978953574,0.00442261,121920.0,121910.0,0.17202396]
[1759978953795,0.00442261,121920.0,121910.0,0.83242396]
[1759978954302,0.1684646,121920.0,121910.0,0.05875]
[1759978954549,0.27869392,121920.0,121910.0,0.10258]
[1759978954821,0.2423046,121920.0,121910.0,0.14407]
[1759978955026,0.00442261,121920.0,121910.0,0.74329395]
[1759978955248,0.00442261,121920.0,121910.0,1.01803395]
[1759978955476,0.1684646,121920.0,121910.0,1.01803395]
[1759978955702,0.1684646,121920.0,121910.0,0.41881]
[1759978956167,0.00442261,121920.0,121910.0,0.41881]
[1759978957298,0.1760845,121920.0,121910.0,0.37819]
[1759978957516,0.1760845,121920.0,121910.0,0.37827]
[1759978957762,0.31369581,121920.0,121910.0,0.01726]
[1759978957973,0.16406723,121910.0,121890.0,0.06611606]
[1759978958186,0.17168713,121910.0,121900.0,0.31956]
[1759978958414,0.16406723,121910.0,121900.0,0.36067]
[1759978959751,0.16606723,121910.0,121900.0,0.36067]
[1759978960428,0.16606723,121910.0,121900.0,0.36063]
[1759978961515,0.16606723,121910.0,121900.0,0.12643]
[1759978961729,0.002,121910.0,121900.0,0.36059]
[1759978962187,0.002,121910.0,121900.0,0.25017206]
[1759978962432,0.002,121910.0,121900.0,1.27777681]
[1759978962652,0.002,121910.0,121900.0,1.27773681]
[1759978962868,0.002,121910.0,121900.0,1.61773681]
[1759978963487,0.00251134,121910.0,121900.0,1.61773681]
[1759978963714,0.00251134,121910.0,121900.0,1.61785681]
[1759978964122,0.00251134,121910.0,121900.0,1.01863286]
[1759978965390,0.00251134,121910.0,121900.0,1.09371285]
[1759978965593,0.00251134,121910.0,121900.0,1.19371284]
[1759978965802,0.00251134,121910.0,121900.0,1.197036]
[1759978966171,0.00251134,121910.0,121900.0,1.645316]
[1759978966368,0.00251134,121910.0,121900.0,1.879676]
[1759978966573,0.00251134,121910.0,121900.0,1.647316]
[1759978966574,0.00051134,121910.0,121900.0,1.647316]
[1759978966758,0.00051134,121910.0,121900.0,1.881636]
[1759978966958,0.00051134,121910.0,121900.0,1.888636]
[1759978968406,0.00051134,121910.0,121900.0,1.78863601]
[1759978968595,0.00051134,121910.0,121900.0,1.888636]
[1759978968815,0.00051134,121910.0,121900.0,1.86363601]
[1759978969028,0.00051134,121910.0,121900.0,0.886356]
[1759978969265,0.00051134,121910.0,121900.0,1.888556]
[1759978969474,0.00051134,121910.0,121900.0,1.60201589]
[1759978969708,0.00051134,121910.0,121900.0,1.49297273]
[1759978969925,0.00051134,121910.0,121900.0,0.32670383]
[1759978970139,0.00051134,121910.0,121900.0,1.32766383]
[1759978970349,0.00051134,121910.0,121900.0,1.41003286]
[1759978970586,0.00051134,121910.0,121900.0,0.55485206]
[1759978970792,0.00051134,121910.0,121900.0,1.25196396]
[1759978971005,0.00051134,121910.0,121900.0,0.51085206]
[1759978971260,0.00051134,121910.0,121900.0,0.59749206]
[1759978971467,0.00051134,121910.0,121900.0,1.17185206]
[1759978972127,0.00051134,121910.0,121900.0,1.16685206]
[1759978972333,0.00051134,121910.0,121900.0,1.16985206]
[1759978972540,0.00051134,121910.0,121900.0,1.16885206]
[1759978972762,0.23567679,121910.0,121900.0,0.12723206]
[1759978972986,0.23567679,121910.0,121900.0,0.44695206]
[1759978973218,0.23567679,121910.0,121900.0,0.21255206]
[1759978973431,0.16456679,121910.0,121900.0,0.44699206]
[1759978973642,0.20607679,121910.0,121900.0,0.04111]
[1759978973887,0.23667679,121910.0,121900.0,0.28259]
[1759978974106,0.23667679,121910.0,121900.0,0.28359]
[1759978974729,0.23567679,121910.0,121900.0,0.36187]
[1759978974949,0.23567679,121910.0,121900.0,0.12743]
[1759978975181,0.07162134,121910.0,121900.0,0.36183]
[1759978975612,0.23567679,121910.0,121900.0,0.36183]
[1759978975837,0.23767679,121910.0,121900.0,0.36083]
[1759978976051,0.16756679,121910.0,121900.0,0.36083]
[1759978976663,0.00351134,121910.0,121900.0,0.36083]
[1759978977018,0.20907679,121910.0,121900.0,0.36079]
[1759978977230,0.23867679,121910.0,121900.0,0.36079]
[1759978979551,0.07462134,121910.0,121900.0,0.36079]
[1759978979716,0.16756679,121910.0,121900.0,0.12643]
[1759978979926,0.20907679,121910.0,121900.0,0.12643]
[1759978980146,0.20907679,121910.0,121900.0,0.36071]
[1759978980344,0.16756679,121910.0,121900.0,0.36071]
[1759978980776,0.00351134,121910.0,121900.0,0.36071]
[1759978981257,0.16756679,121910.0,121900.0,0.36071]
[1759978981430,0.16756679,121910.0,121900.0,0.12643]
[1759978981644,0.16756679,121910.0,121900.0,0.36071]
[1759978981987,0.20907679,121910.0,121900.0,0.36071]
[1759978982204,0.1640689,121900.0,121890.0,0.02549606]
[1759978982408,0.1640689,121900.0,121890.0,0.34501606]
[1759978982639,0.1640689,121900.0,121890.0,0.42726606]
[1759978982864,0.1640689,121900.0,121890.0,0.19306606]
[1759978983076,0.23112459,121910.0,121890.0,0.19306606]
[1759978983287,0.1640689,121900.0,121890.0,0.42730606]
[1759978983489,0.1650689,121900.0,121890.0,0.42730606]
[1759978983939,0.1650689,121900.0,121890.0,0.38739606]
[1759978984996,0.1650689,121900.0,121890.0,0.38839606]
[1759978985204,0.2065789,121900.0,121890.0,0.38839606]
[1759978985433,0.1640689,121900.0,121890.0,0.38839606]
[1759978986141,0.23012459,121910.0,121890.0,0.42689606]
[1759978986379,0.1640689,121900.0,121890.0,0.42689606]
[1759978986641,0.1650689,121900.0,121890.0,0.42689606]
[1759978987127,0.1640689,121900.0,121890.0,0.38839606]
[1759978988860,0.1650689,121900.0,121890.0,0.38839606]
[1759978990742,0.2330989,121900.0,121890.0,0.06883606]
[1759978990978,0.03023,121900.0,121890.0,0.38819606]
[1759978991183,0.001,121900.0,121890.0,0.38819606]
[1759978991385,0.001,121900.0,121890.0,0.42669606]
[1759978991993,0.2038689,121900.0,121890.0,0.15415606]
[1759978992198,0.2330989,121900.0,121890.0,0.38819606]
[1759978992405,0.33851447,121900.0,121890.0,0.08637606]
[1759978992616,0.93803296,121900.0,121890.0,0.08637606]
[1759978992824,0.93803296,121900.0,121890.0,0.18665606]
[1759978993041,0.93803296,121900.0,121890.0,0.00105606]
[1759978993252,0.93803296,121900.0,121890.0,0.18537606]
[1759978993455,0.93703296,121900.0,121890.0,0.18437606]
[1759978993666,0.94203296,121900.0,121890.0,0.18437606]
[1759978994078,1.28203296,121900.0,121890.0,0.18437606]
[1759978994301,1.36515502,121900.0,121890.0,0.23409606]
[1759978994859,1.37015502,121900.0,121890.0,0.23409606]
[1759978995640,1.37015502,121900.0,121890.0,5.606e-05]
[1759978996079,1.37015502,121900.0,121890.0,0.08441606]
[1759978998004,1.37015502,121900.0,121890.0,5.606e-05]
[1759978999469,1.37778039,121900.0,121890.0,5.606e-05]
[1759979000006,1.97729888,121900.0,121890.0,5.606e-05]
[1759979000214,2.22651663,121900.0,121890.0,5.606e-05]
[1759979000416,2.284524,121900.0,121890.0,5.606e-05]
[1759979000816,2.34592127,121900.0,121890.0,5.606e-05]
[1759979001243,2.34092127,121900.0,121890.0,5.606e-05]
[1759979001448,2.33592369,121900.0,121890.0,5.606e-05]
[1759979001646,2.34192369,121900.0,121890.0,0.00105606]
[1759979001850,2.34892369,121900.0,121890.0,0.00105606]
[1759979002046,2.10796369,121900.0,121890.0,0.00105606]
[1759979002384,1.72154973,121900.0,121890.0,5.606e-05]
[1759979002518,1.50458973,121900.0,121890.0,0.00205606]
[1759979002718,1.73854973,121900.0,121890.0,0.00205606]
[1759979003366,1.50458973,121900.0,121890.0,0.00205606]
[1759979003554,1.73854973,121900.0,121890.0,0.00205606]
[1759979003969,2.33802822,121900.0,121890.0,0.00205606]
[1759979004764,1.73850973,121900.0,121890.0,0.00205606]
[1759979004964,2.33802822,121900.0,121890.0,0.00205606]
[1759979005173,2.33798822,121900.0,121890.0,0.00205606]
[1759979005819,2.33801978,121900.0,121890.0,0.00205606]
[1759979009997,1.96921305,121900.0,121890.0,0.00205606]
[1759979010729,1.9692113,121900.0,121890.0,0.00205606]
[1759979012838,0.16408236,121890.0,121880.0,0.00136781]
[1759979013079,1.20968814,121890.0,121880.0,0.00136781]
[1759979013327,1.48224814,121890.0,121880.0,0.00136781]
[1759979013527,1.53923814,121890.0,121880.0,0.00136781]
[1759979013752,1.30547814,121890.0,121880.0,0.00136781]
[1759979013945,0.16412276,121860.0,121850.0,0.06619503]
[1759979014180,0.22617718,121860.0,121850.0,0.07127503]
[1759979014405,0.32196718,121860.0,121850.0,0.07127503]
[1759979014614,0.32196718,121860.0,121850.0,0.00661496]
[1759979014823,0.33023161,121860.0,121850.0,0.00661496]
[1759979015161,0.32396718,121860.0,121850.0,0.00761496]
[1759979022380,0.29085657,121860.0,121850.0,0.00761496]
[1759979023324,0.29085657,121860.0,121850.0,0.00253496]
[1759979023749,0.3061489,121860.0,121850.0,0.00253496]
[1759979024287,0.29085657,121860.0,121850.0,0.00253496]
[1759979024406,0.30614823,121860.0,121850.0,0.00253496]
[1759979024841,0.38614503,121860.0,121850.0,0.00253496]
[1759979025051,1.21657105,121860.0,121850.0,0.00253496]
[1759979025470,1.22421635,121860.0,121850.0,0.00253496]
[1759979025686,1.21657105,121860.0,121850.0,0.00253496]
[1759979025897,0.30614823,121860.0,121850.0,0.00253496]
[1759979026382,0.29085657,121860.0,121850.0,0.00253496]
[1759979030029,1.20440465,121860.0,121850.0,0.00253496]
[1759979030189,1.21971227,121860.0,121850.0,0.00253496]
[1759979031127,1.22736909,121860.0,121850.0,0.00253496]
[1759979031328,1.29970907,121860.0,121850.0,0.00253496]
[1759979033266,1.28440145,121860.0,121850.0,0.00253496]
[1759979033832,1.01778967,121860.0,121850.0,0.00253496]
[1759979034034,1.35778967,121860.0,121850.0,0.00253496]
[1759979034234,1.37310004,121860.0,121850.0,0.00253496]
[1759979034921,1.60662004,121860.0,121850.0,0.00253496]
[1759979035675,1.66862819,121860.0,121850.0,0.00253496]
[1759979035877,1.67628077,121860.0,121850.0,0.00253496]
[1759979036483,1.44276077,121860.0,121850.0,0.00253496]
[1759979036693,1.67628077,121860.0,121850.0,0.00253496]
[1759979036902,1.44276077,121860.0,121850.0,0.00253496]
[1759979037274,1.70643267,121860.0,121850.0,1e-08]
[1759979038009,1.70643267,121860.0,121810.0,0.15159503]
[1759979038010,0.16417665,121820.0,121810.0,0.15159503]
[1759979038219,0.16417665,121820.0,121810.0,0.38511503]
[1759979038220,0.78916608,121820.0,121810.0,0.38511503]
[1759979038468,0.88483608,121820.0,121810.0,0.38511503]
[1759979038681,0.32102184,121820.0,121810.0,0.15159503]
[1759979038880,0.32102184,121820.0,121810.0,0.0854]
[1759979039092,0.32117302,121820.0,121810.0,0.0854]
[1759979039498,0.29233783,121820.0,121810.0,0.0854]
[1759979039914,0.23532783,121820.0,121810.0,0.38013]
[1759979040520,0.00415118,121820.0,121810.0,0.38013]
[1759979040651,0.00415118,121820.0,121810.0,0.41589]
[1759979040861,0.00415118,121820.0,121810.0,0.49901206]
[1759979041635,0.00115118,121820.0,121810.0,0.49901206]
[1759979041857,0.16432783,121820.0,121810.0,0.18009206]
[1759979042077,0.20070552,121820.0,121810.0,0.14661]
[1759979042296,0.20070552,121820.0,121810.0,0.38013]
[1759979043761,0.20070552,121820.0,121810.0,0.38217754]
[1759979045126,0.23936552,121820.0,121810.0,0.38217754]
[1759979045541,0.00215118,121820.0,121810.0,0.18314754]
[1759979045992,0.16632783,121820.0,121810.0,0.14865754]
[1759979046193,0.16632783,121820.0,121810.0,0.38217754]
[1759979046194,0.20294783,121820.0,121810.0,0.38217754]
[1759979046394,0.23271783,121820.0,121810.0,0.37974754]
[1759979047027,0.16632783,121820.0,121810.0,0.41423754]
[1759979047473,0.20221105,121820.0,121810.0,0.41423754]
[1759979047672,0.20221105,121820.0,121810.0,0.37974754]
[1759979047938,0.16632783,121820.0,121810.0,0.29434754]
[1759979048149,0.16632783,121820.0,121810.0,0.41423754]
[1759979048552,0.16632783,121820.0,121810.0,0.37974754]
[1759979048762,0.16632783,121820.0,121810.0,0.14622754]
[1759979049143,0.16632783,121820.0,121810.0,0.41423754]
[1759979049559,0.16632783,121820.0,121810.0,0.37974754]
[1759979050024,0.00215118,121820.0,121810.0,0.41423754]
[1759979050327,0.16632783,121820.0,121810.0,0.41423754]
[1759979050822,0.00215118,121820.0,121810.0,0.2638396]
[1759979051041,0.00215118,121820.0,121810.0,0.4973596]
[1759979051254,0.00215118,121820.0,121810.0,0.5473596]
[1759979051456,0.00215118,121820.0,121810.0,0.71154973]
[1759979051691,0.00015118,121820.0,121810.0,0.74170163]
[1759979051902,0.00015118,121820.0,121810.0,1.1845534]
[1759979052106,0.00115118,121820.0,121810.0,0.9510334]
[1759979052321,0.00115118,121820.0,121810.0,1.24747962]
[1759979052533,0.00115118,121820.0,121810.0,1.24947962]
[1759979052766,0.00015118,121820.0,121810.0,1.24947962]
[1759979053159,0.00015118,121820.0,121810.0,1.01595962]
[1759979053370,0.00015118,121820.0,121810.0,1.24947962]
[1759979053640,0.00015118,121820.0,121810.0,1.14662785]
[1759979053848,0.00015118,121820.0,121810.0,1.14462785]
[1759979054056,0.00015118,121820.0,121810.0,1.17327659]
[1759979055959,0.00015118,121820.0,121810.0,0.69016646]
[1759979056188,0.00015118,121820.0,121810.0,0.78728171]
[1759979056398,0.00015118,121820.0,121810.0,0.99615297]
[1759979056624,0.00015118,121820.0,121810.0,0.8929596]
[1759979057036,0.16432783,121820.0,121810.0,0.8929596]
[1759979057468,0.16432783,121820.0,121810.0,0.5513596]
[1759979057887,0.00015118,121820.0,121810.0,0.3178396]
[1759979058094,0.00015118,121820.0,121810.0,0.5513596]
[1759979058505,0.00015118,121820.0,121810.0,0.56915297]
[1759979058714,0.00015118,121820.0,121810.0,0.65455297]
[1759979060377,0.00015118,121820.0,121810.0,1.188895]
[1759979060960,0.00015118,121820.0,121810.0,1.08570163]
[1759979061970,0.00015118,121820.0,121810.0,1.11034978]
[1759979063881,0.00015118,121820.0,121810.0,1.17104754]
[1759979066355,0.00015118,121820.0,121810.0,0.85212754]
[1759979066528,0.00015118,121820.0,121810.0,1.51264754]
[1759979068047,0.00015118,121820.0,121810.0,0.85212754]
[1759979068219,0.00015118,121820.0,121810.0,1.51264754]
[1759979068659,0.00015118,121820.0,121810.0,1.27912754]
[1759979068898,0.00015118,121820.0,121810.0,2.34280015]
[1759979071073,0.00015118,121820.0,121810.0,2.34276015]
[1759979071447,0.00015118,121820.0,121810.0,2.49014929]
[1759979071646,0.00015118,121820.0,121810.0,1.82974929]
[1759979071845,0.00015118,121820.0,121810.0,2.49014929]
[1759979072040,0.00015118,121820.0,121810.0,2.26035245]
[1759979072247,0.00015118,121820.0,121810.0,2.02687245]
[1759979072394,0.00015118,121820.0,121810.0,2.26035245]
[1759979073246,0.00015118,121820.0,121810.0,1.59995245]
[1759979073627,0.00015118,121820.0,121810.0,2.26035245]
[1759979078622,0.00015118,121820.0,121810.0,2.05187244]
[1759979078823,0.00015118,121820.0,121810.0,2.38535243]
[1759979079476,5.91e-05,121820.0,121810.0,2.23788329]
[1759979080042,5.91e-05,121820.0,121810.0,2.23388329]
[1759979080472,5.91e-05,121820.0,121810.0,2.84623906]
[1759979080671,5.91e-05,121820.0,121810.0,2.24588329]
[1759979081275,5.91e-05,121820.0,121810.0,2.24288329]
[1759979081524,5.91e-05,121820.0,121810.0,2.43357415]
[1759979082079,5.91e-05,121820.0,121810.0,1.77317415]
[1759979082280,5.91e-05,121820.0,121810.0,2.77513415]
[1759979082707,0.0010591,121820.0,121810.0,2.77913415]
[1759979083515,0.0010591,121820.0,121810.0,2.17877838]
[1759979085255,0.00136815,121870.0,121860.0,0.53427466]
[1759979085431,0.00136815,121870.0,121860.0,0.63323672]
[1759979085432,0.00149223,121870.0,121860.0,0.63323672]
[1759979085614,0.00149223,121870.0,121860.0,1.36220672]
[1759979085816,0.00149223,121870.0,121860.0,1.36224672]
[1759979086094,0.00149223,121870.0,121860.0,1.3868816]
[1759979086299,0.00149223,121870.0,121860.0,0.7265216]
[1759979086509,0.00149223,121870.0,121860.0,0.89206282]
[1759979086712,0.00149223,121870.0,121860.0,1.55642282]
[1759979086943,0.00149223,121870.0,121860.0,0.89606282]
[1759979087147,0.00149223,121870.0,121860.0,1.55642282]
[1759979087349,0.00149223,121870.0,121860.0,1.22001279]
[1759979087556,0.00149223,121870.0,121860.0,1.45353279]
[1759979087761,0.00149223,121870.0,121860.0,1.55646282]
[1759979087965,0.00149223,121870.0,121860.0,1.55546282]
[1759979088382,0.00249223,121870.0,121860.0,1.55546282]
[1759979088593,0.00249223,121870.0,121860.0,1.45253279]
[1759979089005,0.00249223,121870.0,121860.0,1.55546282]
[1759979089412,0.00249223,121870.0,121860.0,1.55238282]
[1759979089829,0.00249223,121870.0,121860.0,1.45045279]
[1759979090809,0.00249223,121870.0,121860.0,1.47537278]
[1759979090983,0.00249223,121870.0,121860.0,0.81513278]
[1759979091195,0.00249223,121870.0,121860.0,1.57834663]
[1759979091662,0.00149223,121870.0,121860.0,1.57834663]
[1759979091863,0.00149223,121870.0,121860.0,1.57734663]
[1759979092086,0.00149223,121870.0,121860.0,1.47645278]
[1759979092295,0.00149223,121870.0,121860.0,1.57928701]
[1759979094990,0.00149223,121870.0,121860.0,0.91896701]
[1759979095194,0.00149223,121870.0,121860.0,1.57916701]
[1759979095400,0.00149223,121870.0,121860.0,1.34576701]
[1759979095600,0.00149223,121870.0,121860.0,1.57916701]
[1759979096925,0.00149223,121870.0,121860.0,0.91896701]
[1759979097329,0.00149223,121870.0,121860.0,1.57916701]
[1759979100789,0.00149223,121870.0,121860.0,1.34576701]
[1759979101023,0.00149223,121870.0,121860.0,0.91896701]
[1759979101254,0.00149223,121870.0,121860.0,1.57912701]
[1759979101421,0.00149223,121870.0,121860.0,1.34576701]
[1759979101653,0.00149223,121870.0,121860.0,1.57912701]
[1759979105081,0.00149223,121870.0,121860.0,1.84472701]
[1759979106784,0.00149223,121870.0,121860.0,1.679127]
[1759979106993,0.00149223,121870.0,121860.0,1.57629277]
[1759979107216,0.00149223,121870.0,121860.0,1.72338954]
[1759979107419,0.00149223,121870.0,121860.0,1.72138954]
[1759979107834,0.00149223,121870.0,121860.0,1.72438954]
[1759979108259,0.0004,121920.0,121910.0,0.50405545]
[1759979108459,0.00055113,121920.0,121910.0,0.92110751]
[1759979108666,0.00055113,121920.0,121910.0,0.99086751]
[1759979108877,0.00055113,121920.0,121910.0,0.99913885]
[1759979109488,0.00055113,121920.0,121910.0,1.02376778]
[1759979109696,0.16459312,121920.0,121910.0,0.20103233]
[1759979109911,0.16405545,121910.0,121900.0,0.01525]
[1759979110117,0.16405545,121910.0,121900.0,0.41705206]
[1759979110118,0.19178545,121910.0,121900.0,0.41705206]
[1759979110316,0.22778545,121910.0,121900.0,0.41705206]
[1759979110587,0.22778545,121910.0,121900.0,0.46471495]
[1759979110959,0.22778545,121910.0,121900.0,0.45631206]
[1759979111172,0.22778545,121910.0,121900.0,0.09837206]
[1759979111381,0.3411947,121910.0,121900.0,0.25805]
[1759979111587,0.2867547,121910.0,121900.0,0.05451]
[1759979111807,0.2887547,121910.0,121900.0,0.28939]
[1759979112633,0.2887547,121910.0,121900.0,0.10451]
[1759979112843,0.76554618,121910.0,121900.0,0.13532]
[1759979113058,0.76554618,121910.0,121900.0,0.292]
[1759979113279,0.16407668,121900.0,121880.0,0.07880822]
[1759979113498,0.16407668,121900.0,121890.0,0.20770206]
[1759979113721,0.16407668,121900.0,121890.0,0.07870843]
[1759979113941,0.16408236,121890.0,121880.0,0.01525]
[1759979114176,0.16408236,121890.0,121880.0,0.09837206]
[1759979114439,0.22781236,121890.0,121880.0,0.45631206]
[1759979115494,0.22981236,121890.0,121880.0,0.45631206]
[1759979115754,0.30980916,121890.0,121880.0,0.14363206]
[1759979115985,0.30980916,121890.0,121880.0,0.45631206]
[1759979116208,0.30980916,121890.0,121860.0,0.07786119]
[1759979116209,0.16410929,121870.0,121860.0,0.07786119]
[1759979116440,0.16410929,121870.0,121860.0,0.51892325]
[1759979116667,0.20010929,121870.0,121860.0,0.22295206]
[1759979116886,0.263434,121870.0,121860.0,0.50631206]
[1759979117115,0.263434,121870.0,121860.0,0.13532]
[1759979117116,0.317874,121870.0,121860.0,0.13532]
[1759979117351,0.31795661,121870.0,121860.0,0.31868]
[1759979117563,0.31795661,121870.0,121860.0,0.08532]
[1759979117784,0.31795661,121870.0,121860.0,0.31868]
[1759979118037,0.16412276,121860.0,121850.0,0.00136826]
[1759979118272,0.16412276,121860.0,121850.0,0.40317032]
[1759979118488,0.22785276,121860.0,121850.0,0.44243032]
[1759979119334,0.16412276,121860.0,121850.0,0.47293032]
[1759979119558,0.20012276,121860.0,121850.0,0.20907032]
[1759979119793,0.20012276,121860.0,121850.0,0.44643032]
[1759979120001,0.3252567,121860.0,121850.0,0.09068826]
[1759979120211,0.3252567,121860.0,121850.0,0.32404826]
[1759979121256,0.3262567,121860.0,121850.0,0.32404826]
[1759979123660,0.74860818,121860.0,121850.0,0.09072826]
[1759979123875,0.74860818,121860.0,121850.0,0.19140826]
[1759979124760,0.3262567,121860.0,121850.0,0.19140826]
[1759979124979,0.74860818,121860.0,121850.0,0.27400826]
[1759979125398,0.74860818,121860.0,121850.0,0.09072826]
[1759979125614,1.17095966,121860.0,121850.0,0.00536826]
[1759979125830,1.17095966,121860.0,121850.0,0.10572826]
[1759979126041,0.3262567,121860.0,121850.0,0.00536826]
[1759979126251,1.17095966,121860.0,121850.0,0.17856826]
[1759979126464,1.17095966,121860.0,121850.0,0.00536826]
[1759979126674,1.17095966,121860.0,121850.0,0.23476826]
[1759979127093,1.17095966,121860.0,121850.0,0.00136826]
[1759979127307,1.50995966,121860.0,121850.0,0.00716826]
[1759979127528,1.59908172,121860.0,121850.0,0.00236826]
[1759979128168,1.60108172,121860.0,121850.0,0.00236826]
[1759979128595,0.75637876,121860.0,121850.0,0.00236826]
[1759979128820,1.60108172,121860.0,121850.0,0.00236826]
[1759979129577,0.37341482,121860.0,121850.0,0.00236826]
[1759979129864,0.23585276,121860.0,121850.0,0.07628826]
[1759979130060,0.71264424,121860.0,121850.0,0.00236826]
[1759979130340,1.13499572,121860.0,121850.0,0.23020826]
[1759979130549,0.71264424,121860.0,121850.0,0.23020826]
[1759979130767,1.21499252,121860.0,121850.0,0.23020826]
[1759979130990,1.21499252,121860.0,121850.0,0.23604826]
[1759979131202,0.37028956,121860.0,121850.0,0.00236826]
[1759979131430,0.29029276,121860.0,121850.0,0.00236826]
[1759979131637,0.23585276,121860.0,121850.0,0.04162826]
[1759979131841,0.008,121860.0,121850.0,0.22170826]
[1759979132065,0.008,121860.0,121850.0,0.30588826]
[1759979132275,0.17212276,121860.0,121850.0,0.30588826]
[1759979132490,0.008,121860.0,121850.0,0.30588826]
[1759979132899,0.008,121860.0,121850.0,0.15525032]
[1759979133106,0.008,121860.0,121850.0,0.74546394]
[1759979133317,0.008,121860.0,121850.0,0.68953845]
[1759979133554,0.008,121860.0,121850.0,0.52540222]
[1759979133765,0.002,121860.0,121850.0,0.80820222]
[1759979134177,0.005,121860.0,121850.0,0.73853845]
[1759979134389,0.003,121860.0,121850.0,1.03452708]
[1759979134589,8.261e-05,121870.0,121850.0,1.03652708]
[1759979134803,8.261e-05,121870.0,121860.0,0.09674206]
[1759979135024,0.2463619,121870.0,121860.0,0.09674206]
[1759979135246,0.2823619,121870.0,121860.0,0.41586206]
[1759979135660,0.2823619,121870.0,121860.0,0.09674206]
[1759979135941,0.33065351,121870.0,121860.0,0.3327]
[1759979136197,0.2823619,121870.0,121860.0,0.3327]
[1759979136410,0.2279219,121870.0,121860.0,0.13517]
[1759979136615,0.2279219,121870.0,121860.0,0.36889]
[1759979137155,0.2299219,121870.0,121860.0,0.36889]
[1759979137414,0.2299219,121870.0,121860.0,0.37089]
[1759979137626,0.33305351,121870.0,121860.0,0.32108]
[1759979138236,0.33305351,121870.0,121860.0,0.13717]
[1759979138237,0.1681919,121870.0,121860.0,0.13717]
[1759979138418,0.1681919,121870.0,121860.0,0.37085]
[1759979139144,0.2064419,121870.0,121860.0,0.37085]
[1759979139479,0.2340819,121870.0,121860.0,0.37085]
[1759979141818,0.2340819,121870.0,121860.0,0.33466]
[1759979142023,0.1681919,121870.0,121860.0,0.37085]
[1759979142235,0.00408261,121870.0,121860.0,0.41328482]
[1759979142467,0.00191849,121870.0,121860.0,0.67699672]
[1759979143938,0.00191849,121870.0,121860.0,1.27317281]